bitfinex/quotes_BTCUSD_20250831
["timestamp","ask_amount","ask_price","bid_price","bid_amount"]
[1756650646070,0.57824004,108600.0,108590.0,0.39248884]
[1756650646218,0.57626004,108600.0,108590.0,0.39248884]
[1756650646625,0.57614434,108600.0,108590.0,0.39248884]
[1756650647051,0.18636206,108600.0,108590.0,0.39248884]
[1756650647270,0.57614434,108600.0,108590.0,0.39248884]
[1756650647774,0.18636206,108600.0,108590.0,0.78227112]
[1756650647979,0.18636206,108600.0,108590.0,0.39248884]
[1756650648214,0.57614434,108600.0,108590.0,0.39248884]
[1756650649020,0.18636206,108600.0,108590.0,0.39248884]
[1756650650970,0.18416206,108600.0,108590.0,0.39248884]
[1756650651381,0.18614206,108600.0,108590.0,0.05366982]
[1756650651617,0.18416206,108600.0,108590.0,0.39244884]
[1756650651822,0.57592434,108600.0,108590.0,0.39244884]
[1756650653325,0.18614206,108600.0,108590.0,0.39244884]
[1756650653566,0.57394434,108600.0,108590.0,0.39244884]
[1756650653749,0.57394434,108600.0,108590.0,0.23784884]
[1756650653886,0.57394434,108600.0,108590.0,0.39244884]
[1756650655733,0.57394434,108600.0,108590.0,0.05366982]
[1756650655906,0.57592434,108600.0,108590.0,0.20826982]
[1756650656106,0.57394434,108600.0,108590.0,0.20826982]
[1756650656546,0.57592434,108600.0,108590.0,0.20826982]
[1756650660410,0.18614206,108600.0,108590.0,0.20826982]
[1756650660627,0.57592434,108600.0,108590.0,0.20826982]
[1756650660858,0.57592434,108600.0,108590.0,0.39244884]
[1756650662049,0.18614206,108600.0,108590.0,0.39244884]
[1756650662256,0.57394434,108600.0,108590.0,0.39244884]
[1756650662471,0.18416206,108600.0,108590.0,0.39244884]
[1756650663513,0.1942333,108610.0,108590.0,0.78223112]
[1756650663718,0.58401558,108610.0,108590.0,0.95506556]
[1756650663920,0.58401558,108610.0,108590.0,0.92738456]
[1756650664107,0.1942333,108610.0,108600.0,0.20823088]
[1756650664243,0.58401558,108610.0,108600.0,0.05382482]
[1756650664464,0.58599558,108610.0,108600.0,0.05382482]
[1756650664666,0.1962133,108610.0,108600.0,0.05382482]
[1756650664859,0.58899558,108610.0,108600.0,0.05382482]
[1756650665348,0.1982133,108610.0,108600.0,0.05382482]
[1756650665552,0.58599558,108610.0,108600.0,0.05382482]
[1756650665751,0.58699558,108610.0,108600.0,0.05382482]
[1756650666163,0.58699558,108610.0,108600.0,0.20317482]
[1756650666573,0.59619695,108610.0,108600.0,0.20317482]
[1756650667235,0.59819695,108610.0,108600.0,0.20317482]
[1756650667680,0.59819695,108610.0,108600.0,0.04861482]
[1756650667861,0.21138467,108610.0,108600.0,0.24461537]
[1756650668099,0.60116695,108610.0,108600.0,0.20317482]
[1756650668302,0.59819695,108610.0,108600.0,0.20317482]
[1756650669262,0.58899558,108610.0,108600.0,0.20317482]
[1756650669844,0.58899558,108610.0,108600.0,0.20838482]
[1756650670278,0.58899558,108610.0,108600.0,0.20317482]
[1756650671797,0.1992133,108610.0,108600.0,0.20317482]
[1756650672022,0.58899558,108610.0,108600.0,0.20317482]
[1756650672257,0.59835127,108610.0,108600.0,0.20317482]
[1756650672469,0.59835127,108610.0,108600.0,0.24440381]
[1756650672785,0.59835127,108610.0,108600.0,0.08984381]
[1756650672983,0.59835127,108610.0,108600.0,0.24440381]
[1756650676760,0.59835127,108610.0,108600.0,0.24961381]
[1756650680593,0.59800727,108610.0,108600.0,0.24961381]
[1756650680992,0.58865158,108610.0,108600.0,0.24961381]
[1756650681189,0.59769308,108610.0,108600.0,0.24961381]
[1756650681795,0.59769308,108610.0,108600.0,0.24440381]
[1756650682239,0.59769308,108610.0,108600.0,0.24757381]
[1756650682592,0.59769308,108610.0,108600.0,0.24963381]
[1756650685729,0.59769308,108610.0,108600.0,0.24646381]
[1756650686426,0.59769308,108610.0,108600.0,0.08984381]
[1756650686629,0.59769308,108610.0,108600.0,0.24436381]
[1756650686981,0.59669308,108610.0,108600.0,0.24753381]
[1756650687183,0.184761,108610.0,108600.0,0.43375587]
[1756650687437,0.57454328,108610.0,108600.0,0.24959381]
[1756650688207,0.57649328,108610.0,108600.0,0.24959381]
[1756650688637,0.57749328,108610.0,108600.0,0.24959381]
[1756650688841,0.57849328,108610.0,108600.0,0.24959381]
[1756650689027,0.57749328,108610.0,108600.0,0.24959381]
[1756650689234,0.57749328,108610.0,108600.0,0.24436381]
[1756650690533,0.58670204,108610.0,108600.0,0.24436381]
[1756650691353,0.58670204,108610.0,108600.0,0.24959381]
[1756650691489,0.19691976,108610.0,108600.0,0.24959381]
[1756650691700,0.58670204,108610.0,108600.0,0.24959381]
[1756650692113,0.58670204,108610.0,108600.0,0.24436381]
[1756650692336,0.19691976,108610.0,108600.0,0.24959381]
[1756650692680,0.58670204,108610.0,108600.0,0.24959381]
[1756650696013,0.3735881,108610.0,108600.0,0.24959381]
[1756650696453,0.5577332,108610.0,108600.0,0.24959381]
[1756650696854,0.5593832,108610.0,108600.0,0.24959381]
[1756650698216,0.56846536,108610.0,108600.0,0.24959381]
[1756650698435,0.5593832,108610.0,108600.0,0.24959381]
[1756650700414,0.56869916,108610.0,108600.0,0.24959381]
[1756650700798,0.5593832,108610.0,108600.0,0.24959381]
[1756650700991,0.5577332,108610.0,108600.0,0.24959381]
[1756650701806,0.5577332,108610.0,108600.0,0.43375587]
[1756650702016,0.57392738,108610.0,108600.0,0.43375587]
[1756650706097,0.1841451,108610.0,108600.0,0.43375587]
[1756650706299,0.38978228,108610.0,108600.0,0.43375587]
[1756650706516,0.0002,108620.0,108610.0,0.20508392]
[1756650706727,0.00034297,108620.0,108610.0,0.69307621]
[1756650707139,0.00034297,108620.0,108610.0,0.72074821]
[1756650707358,0.00034297,108620.0,108610.0,0.33096593]
[1756650707499,0.00034297,108620.0,108610.0,0.72074821]
[1756650707923,0.00034297,108620.0,108610.0,0.33096593]
[1756650708129,0.00034297,108620.0,108610.0,0.33296593]
[1756650710386,0.00034297,108620.0,108610.0,0.48740593]
[1756650711486,0.39012525,108620.0,108610.0,0.48740593]
[1756650712745,0.00034297,108620.0,108610.0,0.48740593]
[1756650712965,0.5759034,108620.0,108610.0,0.30326083]
[1756650713177,0.96568568,108620.0,108610.0,0.029672]
[1756650713385,0.96568568,108620.0,108610.0,0.184112]
[1756650713976,0.18612112,108620.0,108610.0,0.184112]
[1756650714179,0.96568568,108620.0,108610.0,0.184112]
[1756650719131,0.96568568,108620.0,108610.0,0.184072]
[1756650723652,0.96568568,108620.0,108610.0,0.029672]
[1756650723895,0.96671568,108620.0,108610.0,0.1564]
[1756650724769,0.96568568,108620.0,108610.0,0.1564]
[1756650725144,1.12008568,108620.0,108610.0,0.002]
[1756650725347,1.12008568,108620.0,108610.0,0.1564]
[1756650726745,1.12111568,108620.0,108610.0,0.002]
[1756650727570,0.96568568,108620.0,108610.0,0.002]
[1756650728394,0.77956456,108620.0,108610.0,0.002]
[1756650728602,0.96369271,108620.0,108610.0,0.002]
[1756650730098,1.11829271,108620.0,108610.0,0.002]
[1756650730335,1.941055,108620.0,108610.0,0.002]
[1756650730511,0.77170816,108620.0,108610.0,0.002]
[1756650730710,1.941055,108620.0,108610.0,0.002]
[1756650732087,1.968735,108620.0,108610.0,0.002]
[1756650733577,0.18416206,108600.0,108590.0,0.15764]
[1756650733788,0.96372662,108600.0,108590.0,0.00493]
[1756650733997,0.97297493,108600.0,108590.0,0.00493]
[1756650735029,0.97297493,108600.0,108590.0,0.00693]
[1756650735564,0.19341037,108600.0,108590.0,0.00693]
[1756650735767,0.97297493,108600.0,108590.0,0.00693]
[1756650735978,0.97297493,108600.0,108590.0,0.00496]
[1756650740283,0.97297493,108600.0,108590.0,0.00703]
[1756650743049,0.58319265,108600.0,108590.0,0.00703]
[1756650743469,0.19341037,108600.0,108590.0,0.00703]
[1756650743705,0.58319265,108600.0,108590.0,0.00703]
[1756650746973,0.97297493,108600.0,108590.0,0.00703]
[1756650747152,0.97297493,108600.0,108590.0,0.16155]
[1756650748139,0.97297493,108600.0,108590.0,0.00703]
[1756650748345,0.19341037,108600.0,108590.0,0.00703]
[1756650748554,0.97297493,108600.0,108590.0,0.00703]
[1756650749706,0.97297493,108600.0,108590.0,0.16151]
[1756650751151,0.97297493,108600.0,108590.0,0.189192]
[1756650761037,0.58319265,108600.0,108590.0,0.189192]
[1756650763377,0.97297493,108600.0,108590.0,0.189152]
[1756650767354,0.97297493,108600.0,108590.0,0.1885511]
[1756650769009,0.19341037,108600.0,108590.0,0.1885511]
[1756650769314,0.58319265,108600.0,108590.0,0.1885511]
[1756650769938,0.57394434,108600.0,108590.0,0.1885511]
[1756650770150,0.18416206,108600.0,108590.0,0.1885511]
[1756650770357,0.57394434,108600.0,108590.0,0.1885511]
[1756650770972,0.5832297,108600.0,108590.0,0.1885511]
[1756650771177,0.57394434,108600.0,108590.0,0.1885511]
[1756650771595,0.18416206,108600.0,108590.0,0.1885511]
[1756650771802,0.57394434,108600.0,108590.0,0.1885511]
[1756650772712,0.58322601,108600.0,108590.0,0.1885511]
[1756650773559,0.57394434,108600.0,108590.0,0.37273012]
[1756650773772,0.18416206,108600.0,108590.0,0.37273012]
[1756650774015,0.57394434,108600.0,108590.0,0.37273012]
[1756650774659,0.55812907,108600.0,108590.0,0.37273012]
[1756650775902,0.56746936,108600.0,108590.0,0.1885511]
[1756650776099,0.55812907,108600.0,108590.0,0.1885511]
[1756650778364,0.56727159,108600.0,108590.0,0.1885511]
[1756650778937,0.19330458,108600.0,108590.0,0.1885511]
[1756650779144,0.97286914,108600.0,108590.0,0.1885511]
[1756650779912,0.19330458,108600.0,108590.0,0.1885511]
[1756650780117,0.58308686,108600.0,108590.0,0.1885511]
[1756650780984,0.57394434,108600.0,108590.0,0.1885511]
[1756650781946,0.58297611,108600.0,108590.0,0.1885511]
[1756650782165,0.18415968,108610.0,108590.0,0.37273012]
[1756650782369,0.57394196,108610.0,108600.0,0.00297]
[1756650782561,0.57394196,108610.0,108600.0,0.18915206]
[1756650783644,0.57394196,108610.0,108600.0,0.21683106]
[1756650784630,0.38978228,108610.0,108600.0,0.23776988]
[1756650784831,0.57392738,108610.0,108600.0,0.23776988]
[1756650786272,0.35711499,108620.0,108600.0,0.23776988]
[1756650786504,0.59245727,108620.0,108610.0,0.15741]
[1756650786959,0.98223955,108620.0,108610.0,0.185087]
[1756650787403,1.13667955,108620.0,108610.0,0.185087]
[1756650787606,0.98323955,108620.0,108610.0,0.185087]
[1756650787810,1.13767955,108620.0,108610.0,0.185087]
[1756650788554,0.35811499,108620.0,108610.0,0.187107]
[1756650788765,1.13767955,108620.0,108610.0,0.187107]
[1756650788969,1.13867955,108620.0,108610.0,0.187107]
[1756650789186,0.98423955,108620.0,108610.0,0.187107]
[1756650789415,1.13867955,108620.0,108610.0,0.187107]
[1756650789630,1.13767955,108620.0,108610.0,0.187107]
[1756650789776,1.13867955,108620.0,108610.0,0.187107]
[1756650789979,0.98423955,108620.0,108610.0,0.187107]
[1756650790198,1.13867955,108620.0,108610.0,0.187107]
[1756650791035,0.74889727,108620.0,108610.0,0.187107]
[1756650792859,0.59445727,108620.0,108610.0,0.187107]
[1756650793065,0.74889727,108620.0,108610.0,0.187107]
[1756650793675,0.74889727,108620.0,108610.0,0.032667]
[1756650793881,0.98423955,108620.0,108610.0,0.032667]
[1756650794072,1.13867955,108620.0,108610.0,0.032667]
[1756650794503,0.74889727,108620.0,108610.0,0.032667]
[1756650795852,0.59445727,108620.0,108610.0,0.032667]
[1756650795999,0.74889727,108620.0,108610.0,0.032667]
[1756650796218,0.74889727,108620.0,108610.0,0.00499]
[1756650796545,0.59445727,108620.0,108610.0,0.00499]
[1756650796748,0.35911499,108620.0,108610.0,0.00499]
[1756650796968,0.74889727,108620.0,108610.0,0.00499]
[1756650799998,0.35911499,108620.0,108610.0,0.00499]
[1756650800192,0.74889727,108620.0,108610.0,0.00499]
[1756650800416,0.59445727,108620.0,108610.0,0.15943]
[1756650800798,0.20467499,108620.0,108610.0,0.15943]
[1756650801010,0.59445727,108620.0,108610.0,0.15741]
[1756650801929,0.59445727,108620.0,108610.0,0.15947]
[1756650802481,0.59445727,108620.0,108610.0,0.3436151]
[1756650802882,0.59445727,108620.0,108610.0,0.3712911]
[1756650803077,0.20467499,108620.0,108610.0,0.3712911]
[1756650803501,0.59445727,108620.0,108610.0,0.3712911]
[1756650804569,0.57591043,108620.0,108610.0,0.3712911]
[1756650804960,0.5851921,108620.0,108610.0,0.3712911]
[1756650805620,0.19540982,108620.0,108610.0,0.3712911]
[1756650805802,0.5851921,108620.0,108610.0,0.3712911]
[1756650806460,0.5841921,108620.0,108610.0,0.3712911]
[1756650806658,0.5841921,108620.0,108610.0,0.2168511]
[1756650806889,0.19440982,108620.0,108610.0,0.3712511]
[1756650807111,0.5841921,108620.0,108610.0,0.032706]
[1756650807354,0.5831921,108620.0,108610.0,0.187106]
[1756650807565,0.5831921,108620.0,108610.0,0.189106]
[1756650807954,0.18412815,108620.0,108610.0,0.3732511]
[1756650808164,0.57391043,108620.0,108610.0,0.3732511]
[1756650811164,0.57391043,108620.0,108610.0,0.41427305]
[1756650812203,0.58463215,108630.0,108620.0,0.18412815]
[1756650812449,0.58510862,108630.0,108620.0,0.18412815]
[1756650812660,0.58510862,108630.0,108620.0,0.18929815]
[1756650812872,0.58510862,108630.0,108620.0,0.21697115]
[1756650813752,0.19532634,108630.0,108620.0,0.21697115]
[1756650813966,0.58510862,108630.0,108620.0,0.21697115]
[1756650816586,0.58510862,108630.0,108620.0,0.21897115]
[1756650816818,0.19532634,108630.0,108620.0,0.21897115]
[1756650817037,0.58510862,108630.0,108620.0,0.21897115]
[1756650820890,0.39025875,108630.0,108620.0,0.21897115]
[1756650821105,0.57440018,108630.0,108620.0,0.21897115]
[1756650821717,0.1846179,108630.0,108620.0,0.21897115]
[1756650821954,0.57440018,108630.0,108620.0,0.21897115]
[1756650823022,0.1846179,108630.0,108620.0,0.21897115]
[1756650823160,0.57440018,108630.0,108620.0,0.21897115]
[1756650823686,0.39025875,108630.0,108620.0,0.21897115]
[1756650823892,0.57436995,108630.0,108620.0,0.21897115]
[1756650825513,0.18458767,108630.0,108620.0,0.21897115]
[1756650825738,0.57436995,108630.0,108620.0,0.21897115]
[1756650828059,0.18458767,108630.0,108620.0,0.21897115]
[1756650828266,0.57436995,108630.0,108620.0,0.21897115]
[1756650829728,0.39025875,108630.0,108620.0,0.21897115]
[1756650830094,0.39025875,108630.0,108620.0,0.23990997]
[1756650831278,0.00047647,108630.0,108620.0,0.72267226]
[1756650831502,0.00047647,108630.0,108620.0,0.79347226]
[1756650831732,0.00047647,108630.0,108620.0,0.40368998]
[1756650831964,0.00047647,108630.0,108620.0,0.94783226]
[1756650832170,0.00047647,108630.0,108620.0,0.79298983]
[1756650832441,0.00047647,108630.0,108620.0,0.55756755]
[1756650832697,0.00047647,108630.0,108620.0,0.40320755]
[1756650832884,0.00047647,108630.0,108620.0,0.55756755]
[1756650834064,0.00047647,108630.0,108620.0,0.40320755]
[1756650834270,0.39025875,108630.0,108620.0,0.55756755]
[1756650836353,0.39025875,108630.0,108620.0,0.40320755]
[1756650836559,0.39025875,108630.0,108620.0,0.55756755]
[1756650836787,0.00047647,108630.0,108620.0,0.55756755]
[1756650836998,0.39025875,108630.0,108620.0,0.55756755]
[1756650837369,0.39025875,108630.0,108620.0,0.40320755]
[1756650837547,0.39025875,108630.0,108620.0,0.55756755]
[1756650841582,0.00047647,108630.0,108620.0,0.55756755]
[1756650842219,0.00047647,108630.0,108620.0,0.94734983]
[1756650842904,0.00047647,108630.0,108620.0,0.55756755]
[1756650844918,0.00047647,108630.0,108620.0,0.94734983]
[1756650850503,0.00047647,108630.0,108620.0,0.95641991]
[1756650855176,0.00047647,108630.0,108620.0,0.55756755]
[1756650856993,0.00047647,108630.0,108620.0,0.94734983]
[1756650860534,0.00047647,108630.0,108620.0,0.87654983]
[1756650860740,0.00047647,108630.0,108620.0,0.87650983]
[1756650864540,0.57436995,108630.0,108620.0,0.20493182]
[1756650864781,0.57436995,108630.0,108620.0,0.05061182]
[1756650864957,0.57436995,108630.0,108620.0,0.20493182]
[1756650865368,0.57436995,108630.0,108620.0,0.20795182]
[1756650868914,0.57436995,108630.0,108620.0,0.183953]
[1756650870346,0.57436995,108630.0,108620.0,0.029673]
[1756650870554,0.57436995,108630.0,108620.0,0.189093]
[1756650870779,0.57436995,108630.0,108620.0,0.183953]
[1756650872232,0.57436995,108630.0,108620.0,0.186973]
[1756650872669,0.57436995,108630.0,108620.0,0.183953]
[1756650873837,0.57436995,108630.0,108620.0,0.186973]
[1756650874244,0.57436995,108630.0,108620.0,0.029673]
[1756650874448,0.57436995,108630.0,108620.0,0.183953]
[1756650875855,0.96415223,108630.0,108620.0,0.15628]
[1756650876085,1.11843223,108630.0,108620.0,0.15628]
[1756650876345,1.11843223,108630.0,108620.0,0.002]
[1756650876746,0.96415223,108630.0,108620.0,0.002]
[1756650876981,0.72864995,108630.0,108620.0,0.002]
[1756650877104,0.18458767,108630.0,108620.0,0.00714]
[1756650877310,0.57436995,108630.0,108620.0,0.00714]
[1756650878940,0.57436995,108630.0,108620.0,0.00502]
[1756650879841,0.57436995,108630.0,108620.0,0.1593]
[1756650881710,0.57436995,108630.0,108620.0,0.00502]
[1756650881938,0.57436995,108630.0,108620.0,0.1593]
[1756650883158,0.57436995,108630.0,108620.0,0.16142]
[1756650883776,0.57436995,108630.0,108620.0,0.1593]
[1756650885094,0.57436995,108630.0,108620.0,0.00714]
[1756650885295,0.57436995,108630.0,108620.0,0.16142]
[1756650888020,0.57436995,108630.0,108620.0,0.002]
[1756650888225,0.57436995,108630.0,108620.0,0.15628]
[1756650889978,0.57436995,108630.0,108620.0,0.15937]
[1756650890353,0.57436995,108630.0,108620.0,0.15628]
[1756650890562,0.96415223,108630.0,108620.0,0.002]
[1756650895813,0.57436995,108630.0,108620.0,0.002]
[1756650900501,0.96415223,108630.0,108620.0,0.002]
[1756650900921,0.18458767,108630.0,108620.0,0.002]
[1756650901159,0.57436995,108630.0,108620.0,0.002]
[1756650901987,0.33886767,108630.0,108620.0,0.00717]
[1756650902139,0.57436995,108630.0,108620.0,0.00717]
[1756650902344,0.72860995,108630.0,108620.0,0.00717]
[1756650902558,0.18458767,108630.0,108620.0,0.00717]
[1756650902768,0.57436995,108630.0,108620.0,0.00717]
[1756650903331,0.57436995,108630.0,108620.0,0.034844]
[1756650905102,0.57436995,108630.0,108620.0,0.00717]
[1756650911631,0.57436995,108630.0,108620.0,0.034844]
[1756650912779,0.57436995,108630.0,108620.0,0.032764]
[1756650914048,0.3465683,108630.0,108620.0,0.032764]
[1756650914244,0.5306795,108630.0,108620.0,0.034844]
[1756650916248,0.5306795,108630.0,108620.0,0.00717]
[1756650918431,0.1841112,108630.0,108620.0,0.02810882]
[1756650918726,0.1841112,108630.0,108620.0,0.60432085]
[1756650918892,0.57427689,108640.0,108620.0,0.21223697]
[1756650919069,0.5743245,108640.0,108630.0,0.00309]
[1756650919271,0.5743245,108640.0,108630.0,0.00517]
[1756650924325,0.18454222,108640.0,108630.0,0.00517]
[1756650924724,0.14794924,108640.0,108630.0,0.00517]
[1756650926204,0.14794924,108640.0,108630.0,0.04594802]
[1756650932147,0.53773152,108640.0,108630.0,0.04594802]
[1756650934973,0.53773152,108640.0,108630.0,0.04386802]
[1756650936170,0.53773152,108640.0,108630.0,0.04581802]
[1756650938179,0.14794924,108640.0,108630.0,0.04581802]
[1756650938423,0.53773152,108640.0,108630.0,0.04581802]
[1756650938600,0.14794924,108640.0,108630.0,0.04581802]
[1756650938770,0.53773152,108640.0,108630.0,0.04581802]
[1756650942989,0.53773152,108640.0,108630.0,0.00504]
[1756650945736,0.53773152,108640.0,108630.0,0.00309]
[1756650946135,0.9275138,108640.0,108630.0,0.00309]
[1756650946467,0.9275138,108640.0,108630.0,0.04428272]
[1756650947064,0.14794924,108640.0,108630.0,0.04428272]
[1756650947389,0.9275138,108640.0,108630.0,0.04428272]
[1756650948276,0.70142068,108640.0,108630.0,0.04428272]
[1756650949292,0.18409461,108640.0,108630.0,0.04623272]
[1756650949651,0.57387689,108640.0,108630.0,0.04623272]
[1756650951466,0.18409461,108640.0,108630.0,0.04623272]
[1756650951725,0.57387689,108640.0,108630.0,0.04623272]
[1756650953833,0.57387689,108640.0,108630.0,0.04428272]
[1756650954009,0.57387689,108640.0,108630.0,0.04625272]
[1756650954471,0.54828784,108640.0,108630.0,0.04428272]
[1756650956535,0.93807012,108640.0,108630.0,0.04428272]
[1756650958174,0.57387689,108640.0,108630.0,0.04428272]
[1756650959497,0.96365917,108640.0,108630.0,0.04119272]
[1756650959699,0.1841112,108630.0,108620.0,0.20585082]
[1756650959911,0.57389348,108630.0,108620.0,0.20782082]
[1756650960357,0.57389348,108630.0,108620.0,0.05370082]
[1756650960563,0.72801348,108630.0,108620.0,0.027672]
[1756650960731,0.18412815,108620.0,108610.0,0.07392]
[1756650960958,0.57391043,108620.0,108610.0,0.184915]
[1756650961121,0.57391043,108620.0,108610.0,0.186885]
[1756650961531,0.57391043,108620.0,108610.0,0.22737603]
[1756650961735,0.57391043,108620.0,108610.0,0.07325603]
[1756650961963,0.96369271,108620.0,108610.0,0.22540603]
[1756650962543,0.57391043,108620.0,108610.0,0.22540603]
[1756650962740,0.57391043,108620.0,108610.0,0.187915]
[1756650963147,0.96369271,108620.0,108610.0,0.030675]
[1756650963475,0.96369271,108620.0,108610.0,0.003]
[1756650964758,0.96369271,108620.0,108610.0,0.00612]
[1756650965293,0.96369271,108620.0,108610.0,0.005]
[1756650965509,0.57391043,108620.0,108610.0,0.005]
[1756650965714,0.57391043,108620.0,108610.0,0.01009]
[1756650966889,0.18412815,108620.0,108610.0,0.01009]
[1756650967097,0.57391043,108620.0,108610.0,0.01009]
[1756650967300,0.18412815,108620.0,108610.0,0.01009]
[1756650967502,0.57391043,108620.0,108610.0,0.01009]
[1756650969036,0.027676,108630.0,108610.0,0.19612313]
[1756650969387,0.18409482,108640.0,108620.0,1.30565154]
[1756650969592,0.18409482,108640.0,108630.0,0.39487228]
[1756650969726,0.18409482,108640.0,108630.0,0.67196349]
[1756650969927,0.18409482,108640.0,108630.0,0.28218121]
[1756650970137,0.19412692,108650.0,108640.0,0.02093882]
[1756650970385,0.19412692,108650.0,108640.0,0.17505882]
[1756650970676,0.71257459,108650.0,108640.0,0.18014882]
[1756650971084,0.72163391,108650.0,108640.0,0.18014882]
[1756650971224,0.72163391,108650.0,108640.0,0.20781582]
[1756650971973,0.71257459,108650.0,108640.0,0.20781582]
[1756650972113,0.19412692,108650.0,108640.0,0.20781582]
[1756650972319,0.19412692,108650.0,108640.0,0.39191007]
[1756650972931,0.19512692,108650.0,108640.0,0.39191007]
[1756650973183,0.19612692,108650.0,108640.0,0.39191007]
[1756650973924,0.19612692,108650.0,108640.0,0.20781582]
[1756650974128,0.19612692,108650.0,108640.0,0.39191007]
[1756650977919,0.19612692,108650.0,108640.0,0.20781582]
[1756650979270,0.19612692,108650.0,108640.0,0.39191007]
[1756650981234,0.19612692,108650.0,108640.0,0.20781582]
[1756650981636,0.19512692,108650.0,108640.0,0.20781582]
[1756650981759,0.19412692,108650.0,108640.0,0.20781582]
[1756650982163,0.19412692,108650.0,108640.0,0.20981582]
[1756650982845,0.19412692,108650.0,108640.0,0.39391007]
[1756650983055,0.19412692,108650.0,108640.0,0.20977582]
[1756650983715,0.19412692,108650.0,108640.0,0.05669582]
[1756650983925,0.19412692,108650.0,108640.0,0.21307699]
[1756650984129,0.19412692,108650.0,108640.0,0.21077582]
[1756650987512,0.86583863,108660.0,108640.0,0.21077582]
[1756650987715,0.85558601,108660.0,108640.0,0.21077582]
[1756650987914,0.19332968,108650.0,108640.0,0.21077582]
[1756650988528,0.19332968,108650.0,108640.0,0.18110882]
[1756650988661,0.19332968,108650.0,108640.0,0.20877582]
[1756650989078,0.19332968,108650.0,108640.0,0.20777582]
[1756650989504,0.19332968,108650.0,108640.0,0.20977582]
[1756650990299,0.19332968,108650.0,108640.0,0.21077582]
[1756650992749,0.19332968,108650.0,108640.0,0.39487007]
[1756650996929,0.17391653,108660.0,108650.0,0.18407731]
[1756650997156,0.18410797,108660.0,108650.0,0.18927731]
[1756650997542,0.18410797,108660.0,108650.0,0.21694231]
[1756650999928,0.18410797,108660.0,108650.0,0.032865]
[1756651000079,0.18410797,108660.0,108650.0,0.186945]
[1756651000895,0.18410797,108660.0,108650.0,0.032865]
[1756651001093,0.18410797,108660.0,108650.0,0.186945]
[1756651003770,0.18410797,108660.0,108650.0,0.37102231]
[1756651009019,0.18410797,108660.0,108650.0,0.37098231]
[1756651010395,0.18410797,108660.0,108650.0,0.39192113]
[1756651011495,4.76e-05,108660.0,108650.0,0.39192113]
[1756651013746,0.83639718,108680.0,108650.0,0.39192113]
[1756651013963,0.18407401,108670.0,108660.0,0.00305]
[1756651014552,0.18407401,108670.0,108660.0,0.00516]
[1756651015314,0.18507401,108670.0,108660.0,0.00516]
[1756651016719,0.1941531,108670.0,108660.0,0.18922037]
[1756651018016,0.1951531,108670.0,108660.0,0.18922037]
[1756651019434,0.1951531,108670.0,108660.0,0.00516]
[1756651019638,0.1951531,108670.0,108660.0,0.1592]
[1756651020019,0.58387003,108670.0,108660.0,0.1592]
[1756651021510,0.18604343,108670.0,108660.0,0.34556112]
[1756651021754,0.18604343,108670.0,108660.0,0.34326037]
[1756651022740,0.002,108670.0,108660.0,0.36419919]
[1756651023100,0.002,108670.0,108660.0,0.75291612]
[1756651023322,0.002,108670.0,108660.0,0.40564173]
[1756651023927,0.002,108670.0,108660.0,0.82198066]
[1756651024276,0.18604343,108670.0,108660.0,0.82198066]
[1756651024474,0.002,108670.0,108660.0,0.98572067]
[1756651024720,0.002,108670.0,108660.0,0.83172067]
[1756651024926,0.18604343,108670.0,108660.0,0.41294337]
[1756651025101,0.18604343,108670.0,108660.0,0.6476603]
[1756651025462,0.18604343,108670.0,108660.0,0.8016603]
[1756651025616,0.18504343,108670.0,108660.0,0.6476603]
[1756651025772,0.18504343,108670.0,108660.0,0.8016603]
[1756651026179,0.18504343,108670.0,108660.0,0.83172067]
[1756651026392,0.18504343,108670.0,108660.0,0.98572067]
[1756651027649,0.18504343,108670.0,108660.0,0.98772067]
[1756651027851,0.18404343,108670.0,108660.0,0.98772067]
[1756651028259,0.18404343,108670.0,108660.0,0.98872067]
[1756651028668,0.18404343,108670.0,108660.0,0.6506603]
[1756651028877,0.18404343,108670.0,108660.0,0.8046603]
[1756651029991,0.18404343,108670.0,108660.0,0.98872067]
[1756651032561,0.18404343,108670.0,108660.0,0.60000374]
[1756651032755,0.18404343,108670.0,108660.0,0.98872067]
[1756651033368,0.182678,108670.0,108660.0,0.98872067]
[1756651033567,0.18131299,108670.0,108660.0,0.98872067]
[1756651036472,0.18131299,108670.0,108660.0,0.6506603]
[1756651036663,0.18131299,108670.0,108660.0,0.8046603]
[1756651038031,0.18131299,108670.0,108660.0,0.26194337]
[1756651038244,0.18131299,108670.0,108660.0,0.98872067]
[1756651040141,0.18131299,108670.0,108660.0,0.98735565]
[1756651041275,0.11131299,108670.0,108660.0,0.98735565]
[1756651042656,0.50200992,108670.0,108660.0,0.41457835]
[1756651042855,0.50200992,108670.0,108660.0,0.16759834]
[1756651043074,0.50200992,108670.0,108660.0,0.32155834]
[1756651043363,0.11329299,108670.0,108660.0,0.71027527]
[1756651043741,0.11329299,108670.0,108660.0,0.32155834]
[1756651045108,0.11329299,108670.0,108660.0,0.71027527]
[1756651045555,0.11329299,108670.0,108660.0,0.32155834]
[1756651045751,0.50200992,108670.0,108660.0,0.32155834]
[1756651046224,0.11329299,108670.0,108660.0,0.32155834]
[1756651046573,0.11329299,108670.0,108660.0,0.71027527]
[1756651050134,0.11131299,108670.0,108660.0,0.71027527]
[1756651050723,0.11131299,108670.0,108660.0,0.55631527]
[1756651050928,0.11131299,108670.0,108660.0,0.71027527]
[1756651051129,0.11131299,108670.0,108660.0,0.32155834]
[1756651051324,0.11131299,108670.0,108660.0,0.71027527]
[1756651052801,0.11131299,108670.0,108660.0,0.89433564]
[1756651053816,0.11121499,108670.0,108660.0,0.89433564]
[1756651054031,0.18407641,108680.0,108660.0,0.89433564]
[1756651054233,0.18407641,108680.0,108660.0,0.7949512]
[1756651054468,0.57492334,108680.0,108660.0,0.7981512]
[1756651054618,0.57492334,108680.0,108670.0,0.00428054]
[1756651054826,0.57492334,108680.0,108670.0,0.00748054]
[1756651056012,0.18620641,108680.0,108670.0,0.00748054]
[1756651056386,0.57492334,108680.0,108670.0,0.00748054]
[1756651058296,0.18407409,108680.0,108670.0,0.5802409]
[1756651058466,0.18407409,108680.0,108670.0,0.57794036]
[1756651061227,0.18407409,108680.0,108670.0,0.18922343]
[1756651062446,0.18620409,108680.0,108670.0,0.18922343]
[1756651063045,0.18404343,108670.0,108660.0,0.68978802]
[1756651063246,0.18404343,108670.0,108660.0,0.78474803]
[1756651063475,0.18404343,108670.0,108660.0,0.93922803]
[1756651064119,0.57279102,108680.0,108660.0,0.93922803]
[1756651064448,0.18407409,108680.0,108670.0,0.0032]
[1756651064656,0.57492102,108680.0,108670.0,0.0032]
[1756651064823,0.57492102,108680.0,108660.0,0.93604803]
[1756651065028,0.57492102,108680.0,108660.0,0.93924803]
[1756651065276,0.57492102,108680.0,108660.0,0.93724803]
[1756651065436,0.18404343,108670.0,108660.0,0.93724803]